Cogmind - Beta 17.1 @@@ ROGUE MODE // 2026.09.13 @ 17:28:11 Player: SunShine214 Result: Destroyed by P-70 Sage with Tesla Rifle Performance ------------- Evolutions (4) 2000 Regions Visited (6) 1200 Robots Destroyed (81) 405 Value Destroyed (1971) 1971 Prototype IDs (28) 560 Alien Tech Used (0) 0 Bonus (834) 834 TOTAL SCORE: 6970 Bonus ------- High Alert Combat Kills 34 Registered with UFD 300 Met Optimus in HQ 500 Cogmind --------- Core Integrity 0/850 Matter 273/300 Energy 100/100 System Corruption 23% Temperature Cool (2) Movement Flying (35) Location -6/Factory Parts ------- > --- POWER (1) -------- (None) > --- PROPULSION (5) --- VTOL Module > --- UTILITY (7) ------ Experimental Terrain Scan Processor > --- WEAPON (2) ------- (None) > --- INVENTORY (5) ---- VTOL Module Gatling Laser Scatter Rocket Array Plasma Cutter Peak State ------------ > --- POWER ------------ Cooled Ion Engine > --- PROPULSION ------- Medium Treads Medium Treads Medium Treads Medium Treads > --- UTILITY ---------- Large Storage Unit Enhanced Optical Array Experimental Terrain Scan Processor 0b10 Decoder Chip [Looter] Hacking Suite Hacking Suite A0-MCA's Component Scanner > --- WEAPON ----------- Gatling Laser Precision Rocket Launcher > --- INVENTORY -------- Improved Treads Armored Leg VTOL Module VTOL Module VTOL Module VTOL Module VTOL Module Advanced Heat Sink Medium Storage Unit Advanced Beam Cannon Advanced Beam Cannon Minigun Plasma Cutter [Rating: 66] Favorites ----------- Power Cooled Ion Engine Engine Cooled Ion Engine Power Core Micro Nuclear Core Propulsion Light Treads Treads Light Treads Leg Armored Leg Flight Unit VTOL Module Utility Large Storage Unit Device Seismic Detector Storage Large Storage Unit Processor 0b10 Decoder Chip [Looter] Hackware Hacking Suite Protection Light Armor Plating Weapon Advanced Beam Cannon Energy Gun Gatling Laser Energy Cannon Advanced Beam Cannon Ballistic Gun Assault Rifle Launcher Precision Rocket Launcher Build | -11 -10 -9 -9 -9 -9 -6 ------- Run | Yrd Mat Mat Sto Rec Scr Fac Slots Evolved 8 | . . 2 . . . 6 Power . | . . . . . . . Propulsion 3 | . . . . . . 3 Utility 5 | . . 2 . . . 3 Weapon . | . . . . . . . Parts Attached 63 | 7 6 16 8 . 8 18 Power 8 | 1 2 3 1 . . 1 Engine 6 | 1 2 2 1 . . . Core 2 | . . 1 . . . 1 Reactor . | . . . . . . . Propulsion 21 | 2 . 6 1 . 4 8 Treads 15 | 2 . 6 1 . 4 2 Leg 2 | . . . . . . 2 Wheel . | . . . . . . . Hover . | . . . . . . . Flight 4 | . . . . . . 4 Utility 16 | 2 2 4 1 . 4 3 Device 5 | 1 1 2 . . 1 . Storage 2 | 1 1 . . . . . Processor 4 | . . . . . 3 1 Hackware 2 | . . . . . . 2 Protection 3 | . . 2 1 . . . Artifact . | . . . . . . . Weapon 18 | 2 2 3 5 . . 6 Energy Gun 10 | . . 3 1 . . 6 Energy Cannon 4 | . 2 . 2 . . . Ballistic Gun 2 | 2 . . . . . . Ballistic Cannon . | . . . . . . . Launcher 2 | . . . 2 . . . Special Weapon . | . . . . . . . Impact Weapon . | . . . . . . . Slashing Weapon . | . . . . . . . Piercing Weapon . | . . . . . . . Special Melee Weapon . | . . . . . . . Unidentified Prototypes 4 | . 1 1 2 . . . Corrupted Parts 1 | . . 1 . . . . System Corruption 2 | . . 2 . . . . Parts Lost 26 | . . 5 3 . . 18 Power 3 | . . 1 . . . 2 Propulsion 11 | . . 2 . . . 9 Utility 5 | . . . 1 . . 4 Weapon 7 | . . 2 2 . . 3 Highest Loss Streak 12 | . . 2 1 . . 12 To Critical Strikes . | . . . . . . . Average Backups 12 | . 7 14 14 15 15 13 Power . | . . . . . . . Propulsion 6 | . 3 7 8 8 8 6 Utility 3 | . 1 4 4 5 4 1 Weapon 2 | . 1 1 1 2 2 4 Tool/Special . | . . . . . . . Unused Backups 17 | . . 3 . . 3 11 Power . | . . . . . . . Propulsion 4 | . . . . . 1 3 Utility 6 | . . 1 . . 2 3 Weapon 6 | . . 2 . . . 4 Tool/Special 1 | . . . . . . 1 Average Slot Usage (%) 96 | . 100 81 97 100 100 88 Engine 10 | . 14 10 11 11 11 3 Treads 23 | . 28 21 22 22 22 20 Device 10 | . 14 14 14 11 8 2 Storage 10 | . 14 11 11 11 11 5 Processor 7 | . . . . . 16 23 Hackware 1 | . . . . . . 12 Protection 7 | . . 2 17 22 8 . Energy Gun 2 | . . 10 8 . . 7 Energy Cannon 17 | . 20 11 12 22 22 4 Ballistic Gun 1 | . 7 . . . . . Peak Build Rating 66 | 7 13 16 20 18 44 66 Average Rating 25 | 5 10 13 15 18 30 61 On Entrance 16 | . 7 13 13 18 18 44 Avg Prop Armor Cover (%) 12 | . . . . . . 12 Naked Turns . | . . . . . . . Heaviest Build 44 | 14 37 44 43 43 43 40 Greatest Support 112 | 40 40 40 40 40 56 112 Greatest Overweight (x) 1 | . 1 1 1 1 1 1 Average Overweight (x) . | . . . . 1 . . Largest Inventory Capacity 15 | 8 15 15 15 15 15 15 Average Capacity 14 | 7 13 15 15 15 15 14 Most Carried 15 | . 15 15 15 15 15 15 Average Carried 12 | . 7 14 14 14 14 13 Final Capacity 15 | 8 15 15 15 15 15 5 Final Carried 15 | . 15 15 15 15 15 4 Class Distribution -------------------- 51% | Mutant 33% | Scavenger-Mutant 14% | Hacker-Mutant Dominant Class ---------------- Mutant | -10/Materials Mutant | -9/Materials Scavenger-Mutant | -9/Storage Scavenger-Mutant | -9/Recycling Mutant | -9/Scraptown Hacker-Mutant | -6/Factory Resources | -11 -10 -9 -9 -9 -9 -6 ----------- Run | Yrd Mat Mat Sto Rec Scr Fac Matter Collected 1162 | 268 188 213 107 55 30 301 Remotely . | . . . . . . . Salvage Created 2470 | 99 495 750 338 112 . 676 Parts 145 | 6 38 57 23 3 . 18 Haulers Intercepted 4 | . 2 1 1 . . . Recyclers Shooed 3 | . . 2 1 . . . Parts Field Recycled . | . . . . . . . Retrieved Matter . | . . . . . . . Parts Self-Destructed . | . . . . . . . Prevented . | . . . . . . . Parts Restored . | . . . . . . . Kills | -11 -10 -9 -9 -9 -9 -6 ------- Run | Yrd Mat Mat Sto Rec Scr Fac Combat Hostiles Destroyed 61 | . 11 22 9 1 . 18 Melee 1 | . . . . . . 1 Guns 31 | . 5 10 4 . . 12 Cannons 22 | . 6 12 3 1 . . AOE 5 | . . . 2 . . 3 Classes Destroyed 14 | 2 5 3 . . . 4 Worker 4 | . 1 2 . . . 1 Builder 2 | . . 2 . . . . Tunneler 1 | 1 . . . . . . Hauler 4 | . 2 1 1 . . . Recycler 6 | 1 2 1 1 1 . . Operator 3 | . . 1 2 . . . Watcher 3 | . 2 1 . . . . Swarmer 27 | . 9 14 4 . . . Grunt 17 | . 2 5 2 . . 8 Sentry 8 | . . 3 3 1 . 1 Specialist 4 | . . . . . . 4 Programmer 1 | . . . . . . 1 Heavy 1 | . . . . . . 1 Assembled 3 | . . . . . . 3 Best Kill Streak 7 | 1 5 7 6 1 . 4 Combat Bots Only 5 | . 3 5 4 1 . 3 Max Kills in Single Turn 3 | 1 1 2 3 1 . 1 Gunslinging . | . . . . . . . Exploded 2 | . . . 2 . . 1 Melee 1 | . . . . . . 1 Uniques/NPCs Destroyed . | . . . . . . . Combat | -11 -10 -9 -9 -9 -9 -6 -------- Run | Yrd Mat Mat Sto Rec Scr Fac Hostile Shots Fired 456 | . 47 165 29 10 . 205 Missed 149 | . 12 57 9 3 . 68 Hits 307 | . 35 108 20 7 . 137 Melee 21 | . . . . . . 21 Projectile 286 | . 35 108 20 7 . 116 AOE 3 | . . . . . . 3 Critical Strikes 6 | . 1 . . . . 5 Damage Taken 4564 | . 333 1038 228 99 . 2866 Core 1113 | . 60 170 30 . . 853 Absorbed by Shields . | . . . . . . . Core Remaining (%) 75 | 100 76 . . . 50 . Volleys Fired 164 | 10 36 52 16 5 . 45 Largest 2 | 2 2 2 2 2 . 2 Hottest 160 | 40 136 136 133 136 . 160 Shots Fired 322 | 20 72 102 28 11 . 89 Gun 184 | 20 28 45 13 . . 78 Cannon 126 | . 44 57 12 11 . 2 Launcher 12 | . . . 3 . . 9 Special . | . . . . . . . Kinetic 48 | 20 28 . . . . . Thermal 230 | . 44 70 25 11 . 80 Explosive 12 | . . . 3 . . 9 Electromagnetic 32 | . . 32 . . . . Robot Hit Streak 20 | 4 7 15 16 11 . 20 Robot Miss Streak 5 | 4 2 5 3 . . 4 Penetration Max . | . . . . . . . Secondary Targets 5 | . 1 3 . . . 1 Max Gunslinging Chain 1 | . 1 1 . . . 1 Shots Hit Robots 228 | 10 41 65 24 9 . 79 Core Hits 164 | 4 19 48 35 2 . 56 Critical Kills . | . . . . . . . Critical Parts Destroyed 1 | . 1 . . . . . Critical Strikes 1 | . 1 . . . . . Destroy 1 | . 1 . . . . . Melee Attacks . | . . . . . . . Impact . | . . . . . . . Slashing . | . . . . . . . Piercing . | . . . . . . . Sneak Attacks . | . . . . . . . Combat Hostiles . | . . . . . . . Follow-up Attacks . | . . . . . . . Damage Inflicted 5598 | 110 733 1510 704 191 . 2350 Guns 2618 | 104 170 537 184 . . 1623 Cannons 1643 | . 517 697 205 183 . 41 Explosions 1246 | . . 257 312 . . 677 Melee . | . . . . . . . Ramming 91 | 6 46 19 3 8 . 9 Kinetic 274 | 104 170 . . . . . Thermal 3689 | . 517 936 389 183 . 1664 Explosive 1174 | . . 185 312 . . 677 Electromagnetic 370 | . . 370 . . . . Impact . | . . . . . . . Slashing . | . . . . . . . Piercing . | . . . . . . . Highest Corruption 23 | . . 2 2 2 . 23 Average Corruption 2 | . . 2 2 2 . 3 Corruption Purged . | . . . . . . . Corruption Blocked . | . . . . . . . Effects 31 | . . 4 7 11 . 9 Message Errors 11 | . . 4 3 4 . . Matter Fused 3 | . . . 1 1 . 1 Heat Flow Errors 2 | . . . 1 1 . . Energy Discharges 4 | . . . 2 1 . 1 Data Loss (minor) 3 | . . . . 2 . 1 Data Loss (major) 1 | . . . . . . 1 Misfires 1 | . . . . 1 . . Alerts 4 | . . . . 1 . 3 Misdirections 1 | . . . . . . 1 Weapon Failures 1 | . . . . . . 1 Overload Shots . | . . . . . . . Overflow Damage 39 | . 2 14 1 . . 22 Projectiles 9 | . 2 7 . . . . Explosions 30 | . . 7 1 . . 22 Melee . | . . . . . . . Knockbacks . | . . . . . . . Impact . | . . . . . . . Kinetic . | . . . . . . . Secondary . | . . . . . . . Self-Inflicted Damage 156 | . . . . . . 156 Shots 5 | . . . . . . 5 Rammed 22 | 2 8 6 1 3 . 2 Targets Rammed 27 | 2 10 7 1 4 . 3 Kicked . | . . . . . . . Crushed 5 | . 2 1 . 1 . 1 Highest Temperature 349 | . 317 349 128 267 . 258 Average Temperature 101 | . 111 106 43 117 . 101 Received Heat Transfer 956 | . 87 174 51 27 . 617 Effects 5 | . . . . . . 5 Energy Bleed 3 | . . . . . . 3 Interference 2 | . . . . . . 2 Siege Activations . | . . . . . . . Martial Activations . | . . . . . . . Shielding Activations . | . . . . . . . Robots Disrupted . | . . . . . . . Combat Hostiles . | . . . . . . . Robots Corrupted . | . . . . . . . Combat Hostiles . | . . . . . . . Parts Fried 1 | . . 1 . . . . Impact Corruptions . | . . . . . . . Robots Melted 2 | . . . . . . 2 Combat Hostiles 2 | . . . . . . 2 Parts Melted 12 | . . . . 2 . 10 Heat Transferred 7145 | . 925 1563 600 333 . 3724 Parts Sabotaged . | . . . . . . . Parts Stolen . | . . . . . . . Parts Stripped . | . . . . . . . Power Chain Reactions 1 | . . 1 . . . . Alert | -11 -10 -9 -9 -9 -9 -6 ------- Run | Yrd Mat Mat Sto Rec Scr Fac Maximum Alert Level 2 | . . 2 1 . . 1 Low Security (%) 81 | 100 100 38 16 100 . 94 Level 1 14 | . . 34 83 . . 5 Level 2 3 | . . 27 . . . . Level 3 . | . . . . . . . Level 4 . | . . . . . . . Level 5 . | . . . . . . . High Security . | . . . . . . . Max Security . | . . . . . . . Peak Influence 457 | 5 101 457 342 90 . 250 Initial 185 | . . . 185 90 . . Average 90 | 1 31 244 264 11 . 90 Influence Increases 1918 | 10 350 727 274 52 . 505 Destroy 0b10 Robot/C 1160 | . 220 440 180 20 . 300 Destroy 0b10 Robot/NC 115 | 10 35 40 20 5 . 5 Destroy Leader 284 | . 48 104 52 . . 80 Successful Hack 82 | . 31 8 7 27 . 9 Disable Machine 90 | . 15 30 . . . 45 Destroy Structure 97 | . 1 30 15 . . 51 Lose Combat Pursuer 90 | . . 75 . . . 15 Influence Decreases 1818 | 10 349 287 484 283 . 405 Entered New Map 398 | . . 1 256 141 . . Time Decay 1160 | 10 349 236 198 142 . 225 Lost Part 260 | . . 50 30 . . 180 Squads Dispatched 13 | . . 2 1 . . 10 Investigation 4 | . . 1 . . . 3 Extermination 2 | . . . . . . 2 Reinforcement 7 | . . 1 1 . . 5 Assault . | . . . . . . . Garrison . | . . . . . . . Intercept . | . . . . . . . Searches Triggered . | . . . . . . . Construction Impeded 1 | . . . . . . 1 Haulers Reinforced . | . . . . . . . Active Scanning Responses . | . . . . . . . Cargo Convoy Interrupts . | . . . . . . . Stealth | -11 -10 -9 -9 -9 -9 -6 --------- Run | Yrd Mat Mat Sto Rec Scr Fac Distress Signals 8 | . 1 4 2 . . 1 Communications Jammed . | . . . . . . . Distress Signals . | . . . . . . . Times Spotted 100 | . 19 29 11 1 . 40 Peak Tracking Total 17 | . 6 7 5 1 . 17 Tactical Retreats 3 | . . 2 . . . 1 Traps | -11 -10 -9 -9 -9 -9 -6 ------- Run | Yrd Mat Mat Sto Rec Scr Fac Traps Triggered 8 | . 4 3 . . . 1 Indirectly . | . . . . . . . Trap Hack Attempts . | . . . . . . . Triggered . | . . . . . . . Disarmed 3 | . 3 . . . . . Reprogrammed . | . . . . . . . Reused . | . . . . . . . Traps Extracted . | . . . . . . . Installed . | . . . . . . . Triggered . | . . . . . . . Machines | -11 -10 -9 -9 -9 -9 -6 ---------- Run | Yrd Mat Mat Sto Rec Scr Fac Machines Disabled 6 | . 1 2 . . . 3 Max in Single Turn 2 | . 1 2 . . . 1 Machines Repaired . | . . . . . . . Machines Dismantled . | . . . . . . . Machines Sabotaged . | . . . . . . . Overloaded Fab Kills . | . . . . . . . Hacking | -11 -10 -9 -9 -9 -9 -6 --------- Run | Yrd Mat Mat Sto Rec Scr Fac Machines Accessed 27 | . 7 1 4 8 3 4 Terminals 17 | . 6 1 4 4 . 2 Fabricators . | . . . . . . . Repair Stations . | . . . . . . . Recycling Units 7 | . 1 . . 4 . 2 Scanalyzers . | . . . . . . . Garrison Access . | . . . . . . . Total Hacks 54 | . 17 4 6 16 5 6 Successful 30 | . 10 1 2 8 5 4 Failed 24 | . 7 3 4 8 . 2 Catastrophic 8 | . . 1 3 3 . 1 Database Lockouts . | . . . . . . . Manual 14 | . . 4 4 . . 6 Terminals 38 | . 15 4 6 9 . 4 Fabricators . | . . . . . . . Repair Stations . | . . . . . . . Recycling Units 11 | . 2 . . 7 . 2 Scanalyzers . | . . . . . . . Garrison Access . | . . . . . . . Terminal Hacks 23 | . 9 1 2 4 5 2 Record 5 | . . . . 1 4 . Part Schematic 2 | . . . . 2 . . Prototype ID Bank 1 | . 1 . . . . . Open Door 2 | . . . 2 . . . Branch Access Points 1 | . . 1 . . . . Terminal Index 1 | . . . . . . 1 Recycling Unit Index 1 | . . . . . . 1 Alert Level 1 | . 1 . . . . . Locate Traps 1 | . 1 . . . . . Disarm Traps 2 | . 2 . . . . . Recall Investigation 1 | . 1 . . . . . Hauler Manifests 2 | . 1 . . 1 . . Zone Layout 2 | . 2 . . . . . Proto ID Catalog 1 | . . . . . 1 . Fabricator Hacks . | . . . . . . . Repair Station Hacks . | . . . . . . . Recycling Unit Hacks 5 | . 1 . . 4 . . Retrieve Components 5 | . 1 . . 4 . . Scanalyzer . | . . . . . . . Garrison Access Hacks . | . . . . . . . Unauthorized Hacks 2 | . . . . . . 2 Terminals . | . . . . . . . Fabricators . | . . . . . . . Repair Stations . | . . . . . . . Recycling Units 2 | . . . . . . 2 Fedlink 2 | . . . . . . 2 Scanalyzers . | . . . . . . . Garrison Access . | . . . . . . . Data Cores Recovered 1 | . . . 1 . . . Used 1 | . . . 1 . . . Hacking Detections 15 | . 5 1 3 4 . 2 Full Trace Events 6 | . 1 1 1 2 . 1 Feedback Events . | . . . . . . . Feedback Blocked . | . . . . . . . Robot Schematics Acquired . | . . . . . . . Robots Built . | . . . . . . . Authchips . | . . . . . . . Time . | . . . . . . . Total Robot Build Rating . | . . . . . . . Part Schematics Acquired 2 | . . . . 2 . . Parts Built . | . . . . . . . Authchips . | . . . . . . . Time . | . . . . . . . Total Part Build Rating . | . . . . . . . Part Studies Acquired . | . . . . . . . Parts Repaired . | . . . . . . . Time . | . . . . . . . Parts Recycled . | . . . . . . . Recycled Matter . | . . . . . . . Retrieved Matter . | . . . . . . . Retrieved Components 8 | . 5 . . 3 . . Parts Scanalyzed . | . . . . . . . Part Schematics Acquired . | . . . . . . . Parts Damaged . | . . . . . . . Bothacking | -11 -10 -9 -9 -9 -9 -6 ------------ Run | Yrd Mat Mat Sto Rec Scr Fac Used RIF Installer . | . . . . . . . Robots Hacked . | . . . . . . . Non-combat . | . . . . . . . Combat . | . . . . . . . Robot Hacks Applied . | . . . . . . . Relay Couplers Released . | . . . . . . . Fabnet Peak Effective % . | . . . . . . . Robots Rewired . | . . . . . . . Allies Hacked . | . . . . . . . Hacks Repelled . | . . . . . . . Allies | -11 -10 -9 -9 -9 -9 -6 -------- Run | Yrd Mat Mat Sto Rec Scr Fac Total Allies . | . . . . . . . Largest Group . | . . . . . . . Highest-Rated Group . | . . . . . . . Highest-Rated Ally . | . . . . . . . Initial UFD Resources 24 | . . . . . . 24 Total Orders . | . . . . . . . Ally Attacks . | . . . . . . . Total Damage . | . . . . . . . Kills . | . . . . . . . Allies Corrupted . | . . . . . . . Allies Melted . | . . . . . . . Intel | -11 -10 -9 -9 -9 -9 -6 ------- Run | Yrd Mat Mat Sto Rec Scr Fac Active Infowar (turns) 3577 | 12 1212 528 113 . 941 771 Optics 506 | . . . . . . 506 Seismic 1865 | 12 1212 528 113 . . . Decoding 1699 | . . . . . 941 758 Robot Analysis Total . | . . . . . . . Derelict Logs Recovered . | . . . . . . . Drone Launches . | . . . . . . . Drone Recoveries . | . . . . . . . Decoded 0b10 Intel 44 | . . . . . . 44 Items 44 | . . . . . . 44 Exploration | -11 -10 -9 -9 -9 -9 -6 ------------- Run | Yrd Mat Mat Sto Rec Scr Fac Turns Passed 5258 | 110 1212 528 415 924 1267 802 Spaces Moved 2542 | 47 655 184 168 375 715 398 Core 7 | 5 . . . . . 2 Treads 2477 | 42 655 184 168 375 715 338 Legs 10 | . . . . . . 10 Wheels . | . . . . . . . Hover . | . . . . . . . Flight 48 | . . . . . . 48 Fastest Speed 35 | 50 160 160 160 240 160 35 Average Speed 176 | 148 160 161 203 240 175 145 Slowest Speed 240 | 160 240 240 240 240 240 190 Overloaded Moves . | . . . . . . . Propulsion Burnouts . | . . . . . . . Robots Hopped . | . . . . . . . Potential Cave-ins . | . . . . . . . Cave-ins Triggered . | . . . . . . . Exploration Rate (%) 44 | 4 92 23 40 83 56 10 Regions Visited 6 Branch Regions 3 Pre-discovered Areas 1 | . . . . . . 1 Known Exits Taken 1 | . . 1 . . . . Unknown Exits Taken 5 | 1 1 . 1 1 1 . Scrap Searched 4 | . . . . . 4 . Spaces Dug . | . . . . . . . Terrain Destroyed 107 | . . 30 18 . . 59 Melee . | . . . . . . . Projectile . | . . . . . . . AOE 107 | . . 30 18 . . 59 Terrain Rammed . | . . . . . . . Walls Destroyed . | . . . . . . . Machines Disabled . | . . . . . . . Actions | -11 -10 -9 -9 -9 -9 -6 --------- Run | Yrd Mat Mat Sto Rec Scr Fac Total 2963 | 65 739 304 213 385 741 516 Wait 65 | . 10 24 4 . . 27 Move 2537 | 47 654 183 167 374 714 398 Hop . | . . . . . . . Pick Up 50 | . 15 8 6 1 7 13 Fast Attach 23 | 7 5 7 2 . . 2 Attach 21 | . . 8 1 . . 12 Detach . | . . . . . . . Swap 40 | . 6 9 9 . 8 8 Drop 37 | . 3 6 7 1 12 8 Fire 164 | 10 36 52 16 5 . 45 Melee . | . . . . . . . Ram 2 | . . . . . . 2 Kick . | . . . . . . . Crush 24 | 1 10 7 1 4 . 1 Escape Stasis . | . . . . . . . Rewire . | . . . . . . . Trap . | . . . . . . . Miscellaneous . | . . . . . . . Route ------- -11/Scrapyard -10/Materials (discovered 6 exits: *Mat x3 / [*Min x2] / [*Sub]) -9/Materials (discovered 3 exits: Min x2 / *Sto) -9/Storage -9/Recycling (discovered 2 exits: [*Fac] / *Scr) -9/Scraptown -6/Factory History --------- Turn | Location | Event 9 | -11/Scrapyard | Discovered new exit (range 15) 111 | -11/Scrapyard | Entered Materials 209 | -10/Materials | Discovered new exit (range 16) 310 | -10/Materials | Build established: Mutant 390 | -10/Materials | Discovered new exit (range 5) 942 | -10/Materials | Discovered new exit (range 15) 975 | -10/Materials | Discovered new exit (range 7) 1098 | -10/Materials | Discovered new exit (range 16) 1307 | -10/Materials | Discovered new exit (range 10) 1323 | -10/Materials | Entered another Materials area 1323 | -9/Materials | Evolved 2 slots: Utility x2 1607 | -9/Materials | Identified exit to Mines 1607 | -9/Materials | Identified exit to Storage 1851 | -9/Materials | Entered Storage 2059 | -9/Storage | Build established: Scavenger-Mutant 2237 | -9/Storage | Used back door to open Recycling access 2237 | -9/Storage | Discovered new exit (range 5) 2266 | -9/Storage | Entered Recycling 2267 | -9/Recycling | Joined Warlord attack on 0b10 via Recycling 2552 | -9/Recycling | Discovered new exit (range 15) 3130 | -9/Recycling | Scanned before Scraplab entrance 3164 | -9/Recycling | Entered Scraplab 3183 | -9/Recycling | Discovered new exit (range 4) 3190 | -9/Recycling | Entered Scraptown 3190 | -9/Scraptown | System corruption cleaned by C-Scrubber 3358 | -9/Scraptown | Heard Great Nut preacher, LISTEN AND RECITE! 3468 | -9/Scraptown | Visited UFD Registry 3468 | -9/Scraptown | Registered with UFD as "Beamroller" 3504 | -9/Scraptown | Visited Supply Room 3559 | -9/Scraptown | Visited Cave Peace 3580 | -9/Scraptown | Visited Comm Corps 3612 | -9/Scraptown | Visited Red Mages 3629 | -9/Scraptown | Visited TADAMA 3639 | -9/Scraptown | Visited Scrapoid Research Area 3668 | -9/Scraptown | Visited Cyclists 3682 | -9/Scraptown | Entered Cyclist Reading Room 3769 | -9/Scraptown | Visited Chapter 10 3791 | -9/Scraptown | Visited Infowarlord's Domain 3803 | -9/Scraptown | Build established: Mutant 3804 | -9/Scraptown | Found Exp. Terrain Scan Processor 3839 | -9/Scraptown | Visited Science Guys 3887 | -9/Scraptown | Visited Abandonware Association 3908 | -9/Scraptown | Learned abandonware demo "TRNCOAT.EXE" 3946 | -9/Scraptown | Visited Research Penetration Think Tank 3980 | -9/Scraptown | Visited Derelict Rescue Squad 3999 | -9/Scraptown | Visited Scrap Suit Storage 4041 | -9/Scraptown | Visited DA-N13 Charitable Foundation 4058 | -9/Scraptown | Found DCF Scrap (27 items) 4167 | -9/Scraptown | Visited A0-MCA Data Center 4177 | -9/Scraptown | Given a B rating by A0-MCA 4183 | -9/Scraptown | Found A0-MCA's Component Scanner 4218 | -9/Scraptown | Visited Supply Room 4358 | -9/Scraptown | Met Optimus 4358 | -9/Scraptown | Accepted into 0bPrime 4451 | -9/Scraptown | Discovered new exit (range 3) 4457 | -9/Scraptown | Entered Factory 4457 | -6/Factory | Evolved 6 slots: Propulsion x3, Utility x3 4618 | -6/Factory | Loaded intel: 8 recycling unit locations 4768 | -6/Factory | Build established: Hacker-Mutant 5027 | -6/Factory | Learned location of Protoforge (-3) 5210 | -6/Factory | Assembled infested ambush trap array 5228 | -6/Factory | Core integrity fell below 50% 5229 | -6/Factory | System corruption reached 10% 5239 | -6/Factory | Core integrity fell below 20% 5247 | -6/Factory | Found Scatter Rocket Array 5259 | -6/Factory | Destroyed by P-70 Sage with Tesla Rifle Last Messages --------------- 05243_ as-87744 destroyed. 05244_ as-27435 destroyed. 05244_ as-38541 destroyed. 05244_ as-17571 destroyed. 05244_ as-15338 destroyed. 05245_ U-05 Engineer lays Concrete. 05246_ R-10 Processor destroyed. 05246_ as-66399 destroyed. 05247_ U-05 Engineer lays Concrete. 05247_ Dropped Gatling Laser. 05247_ U-05 Engineer lays Concrete. 05247_ Acquired Scatter Rocket Array. 05248_ U-05 Engineer lays Concrete. 05248_ K-01 Serf destroyed. 05249_ U-05 Engineer lays Concrete. 05250_ U-05 Engineer destroyed. 05255_ System corrupted: Matter fused (-7). 05256_ ALERT: Potential suspicious activity detected, Programmers report to Factory Zone 8A. Map ----- +----------------------------------------------------+ | ?????????????????????????????????????????????????? | | ?????????????????????????????????????????????????? | | ?????????????????????????????????????????????????? | | ?????????????????????????????????????????????????? | | ?????????????????????????????????????????????????? | | ?????????????????????????????????????????????????? | | ?????????????????????????????????????????????????? | | ?????????????????????????????????????????????????? | | ?????????????????????????????????????????????????? | | ?????????????????????????????????????????????????? | | ?????????????????????????????????????????????????? | | ?????????????????????????????????????????????????? | | ?????????????????????????????????????????????????? | | ?????????????????????????????????????????????????? | | ?????????????????????????????????????????????????? | | ?????????????????????????????????????????????????? | | ?????????????????????????????????????????????????? | | ?????????????????????????????????????????????????? | | ?????????????????#########???????????????????????? | | ?????????????????# #???????????????????????? | | ?????????????????# #???????????????????????? | | ##??????###?????## #???????????????????????? | | ??????# """""" # #???????????????????????? | | ??????# """""" ####+####???????????????????????? | | ??????# """""" #??# ###########+####???????????? | | ??????# """""" #??# [ @ !!! ????????? | | #+###### #??# !!! ????????? | | # ## #??# !!! """ ????????? | | # ## #??# "G" ??????????????? | | # # #??# " " ?????????????? | | # # ????# p #????????????? | | ### ###+####### """"""""" #????????????? | | = = #????????????? | | [ ! """"""""" ?????????????? | | ????????????????? | | [[ ?????????????? | | """ = [[ ??????????????? | | """ %=####+#############+#######??????????????? | | """ ! ???????????????????????????????????? | | """ "??????????????????????????????????? | | """ %"" ??????????????????????????????????? | | "" "??????????????????????????????????? | | """ ?? #??????????????????????????????? | | """ ! ! #??????????????????????????????? | | % % """ #??????????????????????????????? | | # !???????????????????????????????? | | ##+#?????????????????????????????????????? | | #?????????????????????????????????????? | | #?????????????????????????????????????? | | [ #?????????????????????????????????????? | +----------------------------------------------------+ Best States ------------- Heat Dissipation 56 Energy Generation 15 Energy Capacity 280 Matter Stores 300 Matter Capacity 300 Sight Range 22 Terrain Scan Density 1010 Armor Coverage 300 Evasion (%) 63 Recoil Reduction 4 Offensive Hacking 20 Item Schematics ----------------- Deuterium Engine | -9/Recycling | Hacked Hvy. Ion Cannon | -9/Recycling | Hacked Robot Schematics ------------------ None Fabricated ------------ Nothing Repaired ---------- Nothing Studied --------- None Alien Tech Used ----------------- None Achievements -------------- None Challenges ------------ None Game ------ Seed ExoskeletonTacticalTreads Manual? 0 Play Time 00:32:51 Cumulative 238.4 hours Start 2026.09.12 @ 09:56:20 End 2026.09.13 @ 17:28:11 Sessions 5 Manual Loads 0 Difficulty Rogue Special Mode None Game No. 349 Rogue 349 Adventurer 0 Explorer 0 Win Type - Total 1 Types 1/0/0/0/0/0/0/0/0/0 Lore% 70 Gallery% 63 Achievement% 47 Wizard Run 0 Options --------- Layout 1 ASCII 0 Keyboard 1 Movement Arrows Keybinds 0 Fullscreen 1 Font 24/Smallcaps Map View 50x35 Zoom Use 0% Tactical HUD 1 Map Filters NONE Filters NONE Steam 1 RUN: d20134cc-9384-4210-9a5a-b00b91d570a7